bitfinex-derivatives/quotes_BTCF0:USTF0_20251208
["timestamp","ask_amount","ask_price","bid_price","bid_amount"]
[1765207981696,0.011088,90189.0,90176.0,0.0110895]
[1765207981904,0.29073199,90190.0,90165.0,0.02141]
[1765207982209,0.07288,90169.0,90168.0,0.00016634]
[1765207982910,0.03723,90169.0,90168.0,0.03736634]
[1765207983203,0.001,90170.0,90169.0,0.07235]
[1765207983399,0.00016534,90187.0,90168.0,0.01125694]
[1765207983400,0.00016534,90187.0,90186.0,0.07235]
[1765207983796,0.008,90190.0,90186.0,0.07235]
[1765207983994,0.008,90190.0,90189.0,0.07235]
[1765207984197,0.0110841,90221.0,90188.0,0.02141]
[1765207984398,0.0110841,90221.0,90203.0,0.0110862]
[1765207984599,0.07288,90201.0,90188.0,0.02141]
[1765207984808,0.29073199,90220.0,90186.0,0.001]
[1765207984809,0.04423,90187.0,90186.0,0.001]
[1765207985007,0.07988,90187.0,90186.0,0.001]
[1765207985406,0.07288,90187.0,90185.0,0.00016634]
[1765207985611,0.07288,90186.0,90185.0,0.00016634]
[1765207986205,0.07288,90168.0,90167.0,0.01259688]
[1765207986406,0.03723,90168.0,90158.0,0.29073199]
[1765207986606,0.0110896,90176.0,90159.0,0.0110917]
[1765207987008,0.0110901,90173.0,90158.0,0.01224149]
[1765207987314,0.00016634,90177.0,90159.0,0.0110917]
[1765207987510,0.0110896,90176.0,90162.0,0.0110912]
[1765207987812,0.01109,90173.0,90159.0,0.005]
[1765207988011,0.01125584,90177.0,90160.0,0.0110915]
[1765207988213,0.01125584,90177.0,90164.0,0.011091]
[1765207988214,0.00016634,90177.0,90164.0,0.011091]
[1765207988410,0.00016634,90177.0,90165.0,0.02141]
[1765207988712,0.03723,90159.0,90158.0,0.00016634]
[1765207988908,0.07288,90159.0,90158.0,0.00616634]
[1765207989713,0.07288,90159.0,90158.0,0.00016634]
[1765207991518,0.03723,90159.0,90158.0,0.00516634]
[1765207991709,0.00016634,90177.0,90158.0,0.07751634]
[1765207991904,0.00016634,90177.0,90163.0,0.0110912]
[1765207992109,0.00016634,90177.0,90176.0,0.07452]
[1765207992719,0.0110906,90168.0,90150.0,0.31214199]
[1765207992908,0.0110911,90164.0,90158.0,0.00316634]
[1765207993104,0.03385,90159.0,90158.0,0.00116634]
[1765207993514,0.06977,90159.0,90158.0,0.00116634]
[1765207993708,0.0110911,90164.0,90158.0,0.00116634]
[1765207994012,0.03385,90159.0,90158.0,0.00416634]
[1765207994212,0.0110911,90164.0,90158.0,0.07767634]
[1765207994413,0.31129199,90180.0,90158.0,0.07767634]
[1765207994613,0.02550568,90179.0,90158.0,0.07767634]
[1765207994815,0.31129199,90180.0,90158.0,0.00416634]
[1765207994816,0.03659518,90178.0,90158.0,0.00416634]
[1765207995014,0.02550568,90177.0,90176.0,0.07351]
[1765207995225,0.0110886,90185.0,90165.0,0.0224]
[1765207995523,0.0110887,90183.0,90171.0,0.0110901]
[1765207995717,0.02552878,90182.0,90165.0,0.0224]
[1765207995924,0.02552878,90181.0,90165.0,0.0224]
[1765207996126,0.29073199,90190.0,90165.0,0.0224]
[1765207996314,0.02553156,90189.0,90165.0,0.0224]
[1765207996625,0.0110897,90176.0,90165.0,0.0224]
[1765207996925,0.0110892,90180.0,90168.0,0.0110905]
[1765207997325,0.001,90181.0,90165.0,0.0224]
[1765207997528,0.001,90181.0,90171.0,0.0110901]
[1765207997722,0.0110892,90180.0,90165.0,0.0334908]
[1765207998022,0.01323,90195.0,90160.0,0.29073199]
[1765207998023,0.011088,90189.0,90160.0,0.29073199]
[1765207998328,0.02553159,90188.0,90166.0,0.0110908]
[1765207998520,0.0110892,90180.0,90169.0,0.0110904]
[1765207998720,0.29073199,90190.0,90165.0,0.0110908]
[1765207998721,0.0110896,90177.0,90165.0,0.0110908]
[1765207998943,0.03385,90159.0,90158.0,0.00016634]
[1765207999112,0.06977,90159.0,90158.0,0.00016634]
[1765207999524,0.0110902,90172.0,90159.0,0.0110916]
[1765207999722,0.02552673,90171.0,90158.0,0.00016634]
[1765208000025,0.0110908,90167.0,90160.0,0.23070074]
[1765208000233,0.0110912,90164.0,90160.0,0.23070074]
[1765208000431,0.0110912,90164.0,90158.0,0.00016634]
[1765208000619,0.0110912,90164.0,90158.0,0.00316634]
[1765208000818,0.02056,90180.0,90164.0,0.011091]
[1765208001023,0.02056,90180.0,90170.0,0.23070074]
[1765208001024,0.03385,90171.0,90170.0,0.23070074]
[1765208001223,0.03385,90171.0,90164.0,0.011091]
[1765208001512,0.0110895,90178.0,90160.0,0.002]
[1765208001513,0.06977,90161.0,90160.0,0.002]
[1765208001714,0.06977,90159.0,90158.0,0.00316634]
[1765208002019,0.06977,90159.0,90158.0,0.00016634]
[1765208002418,0.02056,90180.0,90164.0,0.001]
[1765208002618,0.0110897,90175.0,90165.0,0.0110909]
[1765208002818,0.24178864,90190.0,90164.0,0.001]
[1765208002819,0.06977,90165.0,90164.0,0.001]
[1765208003126,0.02056,90188.0,90164.0,0.001]
[1765208003324,0.02555087,90187.0,90169.0,0.0110903]
[1765208003517,0.02555087,90186.0,90169.0,0.0110903]
[1765208003717,0.02056,90188.0,90175.0,0.0110896]
[1765208003718,0.02555087,90185.0,90175.0,0.0110896]
[1765208004027,0.02555087,90185.0,90164.0,0.001]
[1765208004028,0.02555087,90184.0,90183.0,0.07351]
[1765208004214,0.0110874,90195.0,90174.0,0.02256634]
[1765208004420,0.0110876,90193.0,90184.0,0.0110885]
[1765208004619,0.0110878,90191.0,90184.0,0.0110885]
[1765208004828,0.02555206,90190.0,90184.0,0.0110885]
[1765208005130,0.02555206,90189.0,90188.0,0.0845981]
[1765208005432,0.0110879,90190.0,90181.0,0.0110889]
[1765208005617,0.06977,90180.0,90179.0,0.00016634]
[1765208008020,0.07377,90180.0,90179.0,0.00016634]
[1765208008421,0.09923087,90180.0,90179.0,0.00016634]
[1765208009632,0.07377,90180.0,90179.0,0.00016634]
[1765208010029,0.004,90180.0,90179.0,0.07367634]
[1765208010835,0.03785,90180.0,90179.0,0.07367634]
[1765208011233,0.004,90180.0,90179.0,0.07367634]
[1765208011532,0.0848591,90180.0,90179.0,0.00016634]
[1765208012233,0.0848591,90180.0,90179.0,0.03635634]
[1765208012234,0.07377,90180.0,90179.0,0.03635634]
[1765208012538,0.07377,90180.0,90179.0,0.00016634]
[1765208013943,0.004,90180.0,90179.0,0.07367634]
[1765208014331,0.23070074,90210.0,90179.0,0.07367634]
[1765208014332,0.23070074,90210.0,90179.0,0.00016634]
[1765208014531,0.02518398,90209.0,90189.0,0.0110879]
[1765208014841,0.02518398,90208.0,90188.0,0.0224]
[1765208015135,0.02518398,90207.0,90188.0,0.0334881]
[1765208015331,0.02518398,90206.0,90188.0,0.0334881]
[1765208015534,0.0110868,90199.0,90188.0,0.0224]
[1765208015839,0.0110868,90199.0,90188.0,0.0334881]
[1765208016139,0.03385,90181.0,90179.0,0.00016634]
[1765208016436,0.23070074,90200.0,90179.0,0.00016634]
[1765208016437,0.06977,90180.0,90179.0,0.00016634]
[1765208016634,0.23070074,90200.0,90179.0,0.07367634]
[1765208016833,0.06977,90189.0,90188.0,0.002]
[1765208017236,0.23070074,90200.0,90192.0,0.03619]
[1765208017435,0.0110871,90197.0,90192.0,0.03619]
[1765208017641,0.03385,90193.0,90192.0,0.03619]
[1765208018140,0.03385,90193.0,90192.0,0.07351]
[1765208019037,0.00110847,90215.0,90192.0,0.003]
[1765208019346,0.02514597,90214.0,90202.0,0.0334863]
[1765208019537,0.0110851,90213.0,90202.0,0.0334863]
[1765208019837,0.0110854,90211.0,90202.0,0.0224]
[1765208020036,0.011085,90214.0,90202.0,0.0334864]
[1765208020241,0.00110847,90215.0,90202.0,0.0224]
[1765208020541,0.0110854,90211.0,90202.0,0.0224]
[1765208020742,0.00210847,90215.0,90202.0,0.0224]
[1765208021237,0.0110854,90211.0,90210.0,0.07351]
[1765208021452,0.0808554,90211.0,90202.0,0.0224]
[1765208021642,0.0808554,90211.0,90202.0,0.03495216]
[1765208022142,0.06977,90211.0,90207.0,0.0110857]
[1765208022336,0.01219327,90215.0,90214.0,0.06482]
[1765208022733,0.07848327,90215.0,90214.0,0.06482]
[1765208022932,0.07848327,90215.0,90214.0,0.03147]
[1765208023134,0.07848327,90215.0,90207.0,0.0110857]
[1765208023439,0.06739847,90215.0,90207.0,0.002]
[1765208023638,0.06739847,90215.0,90208.0,0.0110857]
[1765208023842,0.06739847,90215.0,90214.0,0.003]
[1765208024242,0.06739847,90215.0,90214.0,0.03447]
[1765208024441,0.06739847,90215.0,90202.0,0.03895216]
[1765208024442,0.06629,90210.0,90207.0,0.01]
[1765208024639,0.06629,90208.0,90207.0,0.01]
[1765208025346,0.00110847,90215.0,90207.0,0.01]
[1765208025347,0.07848327,90215.0,90214.0,0.004]
[1765208025647,0.06739847,90215.0,90214.0,0.004]
[1765208025947,0.00110847,90215.0,90214.0,0.07182]
[1765208026246,0.2318089,90240.0,90216.0,0.0110846]
[1765208026247,0.00110816,90240.0,90216.0,0.0110846]
[1765208026438,0.02510789,90239.0,90220.0,0.23070074]
[1765208026644,0.0110831,90230.0,90220.0,0.0320341]
[1765208027242,0.0110831,90230.0,90223.0,0.0110838]
[1765208027440,0.06629,90224.0,90223.0,0.0110838]
[1765208027638,0.06629,90224.0,90223.0,0.0425538]
[1765208027837,0.03238,90224.0,90223.0,0.06482]
[1765208028143,0.2318089,90240.0,90220.0,0.0320342]
[1765208028347,0.07707,90220.0,90219.0,0.00016625]
[1765208028748,0.06629,90220.0,90219.0,0.00016625]
[1765208029343,0.06629,90220.0,90219.0,0.06498625]
[1765208029648,0.0110828,90232.0,90220.0,0.02095]
[1765208029951,0.0110831,90230.0,90220.0,0.02095]
[1765208030249,0.2318089,90240.0,90219.0,0.06698625]
[1765208030250,0.06629,90220.0,90219.0,0.06698625]
[1765208030450,0.03238,90220.0,90219.0,0.06698625]
[1765208030652,0.03238,90220.0,90219.0,0.06498625]
[1765208031147,0.0110819,90239.0,90220.0,0.02095]
[1765208031342,0.2318089,90240.0,90224.0,0.0110836]
[1765208031942,0.2318089,90240.0,90220.0,0.25265074]
[1765208031943,0.0110827,90233.0,90220.0,0.26373484]
[1765208032144,0.0110827,90233.0,90223.0,0.0110837]
[1765208032453,0.2318089,90240.0,90220.0,0.02195]
[1765208032454,0.00110816,90240.0,90239.0,0.0759019]
[1765208033049,0.00110816,90240.0,90220.0,0.0330341]
[1765208033050,0.03238,90236.0,90235.0,0.03147]
[1765208033352,0.03238,90236.0,90235.0,0.06482]
[1765208033558,0.00110816,90240.0,90239.0,0.06482]
[1765208033757,0.00410816,90240.0,90239.0,0.06482]
[1765208034050,0.03648816,90240.0,90239.0,0.06482]
[1765208034250,0.07039816,90240.0,90239.0,0.06482]
[1765208034455,0.03238,90234.0,90210.0,0.23070074]
[1765208034655,0.00110816,90240.0,90210.0,0.23070074]
[1765208034656,0.03238,90220.0,90216.0,0.0110847]
[1765208035154,0.03238,90220.0,90219.0,0.06498625]
[1765208035548,0.0110824,90235.0,90220.0,0.02095]
[1765208035748,0.0110831,90229.0,90220.0,0.02095]
[1765208035951,0.0773742,90220.0,90219.0,0.00016625]
[1765208036647,0.06629,90220.0,90219.0,0.03363625]
[1765208036854,0.06629,90220.0,90219.0,0.00216625]
[1765208037450,0.23070074,90230.0,90219.0,0.00216625]
[1765208037451,0.0110831,90229.0,90220.0,0.02095]
[1765208037649,0.2318089,90240.0,90220.0,0.02095]
[1765208038256,0.011082,90238.0,90220.0,0.02095]
[1765208038456,0.011082,90238.0,90237.0,0.03147]
[1765208038657,0.00110816,90240.0,90237.0,0.03147]
[1765208038853,0.03238,90238.0,90237.0,0.03147]
[1765208039056,0.03238,90238.0,90237.0,0.06482]
[1765208039252,0.00110816,90240.0,90239.0,0.06482]
[1765208039450,0.00110816,90240.0,90239.0,0.03147]
[1765208039451,0.06739816,90240.0,90239.0,0.03147]
[1765208039961,0.06629,90231.0,90230.0,0.0110829]
[1765208040151,0.06629,90225.0,90224.0,0.0110836]
[1765208040354,0.06629,90220.0,90219.0,0.00016625]
[1765208040548,0.07707,90220.0,90219.0,0.00016625]
[1765208040752,0.0881542,90220.0,90219.0,0.00016625]
[1765208041448,0.06629,90197.0,90196.0,0.0110871]
[1765208041860,0.01078,90220.0,90190.0,0.00110878]
[1765208041861,0.03238,90211.0,90194.0,0.02095]
[1765208042059,0.23070074,90230.0,90220.0,0.02095]
[1765208042356,0.011083,90230.0,90220.0,0.0320342]
[1765208042563,0.0110833,90228.0,90220.0,0.02095]
[1765208042856,0.0110833,90228.0,90222.0,0.0110838]
[1765208043054,0.03238,90223.0,90222.0,0.0759038]
[1765208043249,0.03238,90228.0,90227.0,0.0425532]
[1765208043461,0.00016593,90234.0,90233.0,0.08577]
[1765208043758,0.0110826,90233.0,90224.0,0.0110836]
[1765208043975,0.06629,90225.0,90224.0,0.0110836]
[1765208044476,0.06629,90225.0,90224.0,0.0425536]
[1765208044675,0.06645593,90234.0,90233.0,0.0110826]
[1765208045073,0.00016593,90234.0,90233.0,0.0968526]
[1765208045272,0.03454593,90234.0,90233.0,0.08577]
[1765208045677,0.00216593,90234.0,90233.0,0.08577]
[1765208045868,0.00110816,90240.0,90239.0,0.0709619]
[1765208046275,0.00110816,90240.0,90239.0,0.083341]
[1765208046971,0.00310816,90240.0,90239.0,0.083341]
[1765208047174,0.02974,90221.0,90211.0,0.07972705]
[1765208047366,0.00310816,90240.0,90207.0,0.02095]
[1765208047367,0.2338089,90240.0,90220.0,0.01691]
[1765208047572,0.011082,90238.0,90225.0,0.0110835]
[1765208047766,0.00310816,90240.0,90225.0,0.0110835]
[1765208047966,0.00310816,90240.0,90220.0,0.24761074]
[1765208047967,0.00310816,90240.0,90229.0,0.011083]
[1765208048173,0.00310816,90240.0,90220.0,0.24761074]
[1765208048174,0.00310816,90240.0,90239.0,0.05988]
[1765208048368,0.06135816,90240.0,90233.0,0.01691]
[1765208048576,0.06025,90231.0,90224.0,0.0110836]
[1765208048780,0.06025,90231.0,90226.0,0.0110834]
[1765208048971,0.06025,90231.0,90230.0,0.05988]
[1765208049282,0.06025,90231.0,90226.0,0.0110834]
[1765208049283,0.00410816,90240.0,90239.0,0.05988]
[1765208050181,0.00110816,90240.0,90239.0,0.0709619]
[1765208050374,0.00110816,90240.0,90239.0,0.05988]
[1765208050675,0.06025,90234.0,90226.0,0.002]
[1765208050871,0.02974,90227.0,90226.0,0.06188]
[1765208051276,0.0110821,90237.0,90226.0,0.06188]
[1765208051479,0.06025,90237.0,90236.0,0.02893]
[1765208051671,0.06025,90237.0,90226.0,0.002]
[1765208051872,0.0110822,90236.0,90226.0,0.002]
[1765208052176,0.0110822,90236.0,90222.0,0.0110839]
[1765208052381,0.0110823,90236.0,90222.0,0.0110839]
[1765208052974,0.00110816,90240.0,90220.0,0.24761074]
[1765208053279,0.00110816,90240.0,90239.0,0.0582]
[1765208053481,0.05952816,90240.0,90233.0,0.01714]
[1765208053675,0.0276,90234.0,90222.0,0.003]
[1765208053978,0.0276,90234.0,90225.0,0.0110835]
[1765208054176,0.05842,90223.0,90222.0,0.003]
[1765208054875,0.05842,90223.0,90222.0,0.002]
[1765208055187,0.05842,90223.0,90216.0,0.00016625]
[1765208055371,0.2318089,90240.0,90222.0,0.0582]
[1765208055679,0.02519799,90239.0,90223.0,0.0110838]
[1765208055877,0.00110816,90240.0,90222.0,0.003]
[1765208055878,0.03627999,90238.0,90237.0,0.03018]
[1765208056083,0.0386825,90234.0,90233.0,0.07534]
[1765208056382,0.0110821,90238.0,90237.0,0.03018]
[1765208056578,0.00110816,90240.0,90237.0,0.0582]
[1765208056783,0.02521051,90239.0,90237.0,0.0582]
[1765208056987,0.05842,90238.0,90237.0,0.0582]
[1765208057185,0.08363051,90238.0,90237.0,0.0582]
[1765208057378,0.0276,90222.0,90221.0,0.0110841]
[1765208057685,0.0276,90222.0,90221.0,0.0582]
[1765208058184,0.002,90234.0,90206.0,0.0110859]
[1765208058185,0.0695046,90217.0,90206.0,0.0110859]
[1765208058484,0.05842,90217.0,90216.0,0.05836625]
[1765208059080,0.0276,90217.0,90216.0,0.07550625]
[1765208059476,0.0276,90217.0,90216.0,0.07950625]
[1765208059676,0.0276,90217.0,90216.0,0.08850625]
[1765208060075,0.0276,90217.0,90216.0,0.09959095]
[1765208060386,0.05842,90217.0,90216.0,0.04334625]
[1765208060580,0.0695046,90217.0,90216.0,0.01316625]
[1765208061479,0.05842,90217.0,90216.0,0.07136625]
[1765208062178,0.05842,90217.0,90216.0,0.01316625]
[1765208062374,0.05842,90194.0,90193.0,0.0412674]
[1765208063182,0.05842,90194.0,90193.0,0.0692874]
[1765208063386,0.0276,90199.0,90198.0,0.0412669]
[1765208063587,0.0276,90199.0,90198.0,0.0692869]
[1765208063878,0.05842,90199.0,90198.0,0.0582]
[1765208064077,0.0276,90191.0,90190.0,0.00110878]
[1765208064292,0.001,90194.0,90193.0,0.0582]
[1765208064789,0.001,90194.0,90193.0,0.0682]
[1765208064976,0.0110869,90199.0,90193.0,0.0682]
[1765208065177,0.0695069,90199.0,90198.0,0.005]
[1765208065378,0.0276,90199.0,90198.0,0.0632]
[1765208065885,0.05842,90199.0,90198.0,0.0632]
[1765208066486,0.00016625,90203.0,90202.0,0.0582]
[1765208067478,0.05792367,90235.0,90198.0,0.006]
[1765208067479,0.0110812,90245.0,90216.0,0.01714]
[1765208067678,0.069504,90222.0,90221.0,0.03018]
[1765208067885,0.0276,90206.0,90205.0,0.0582]
[1765208068289,0.05842,90206.0,90205.0,0.0582]
[1765208068587,0.05842,90204.0,90203.0,0.0110862]
[1765208068795,0.0110847,90216.0,90205.0,0.0110859]
[1765208068985,0.0110847,90216.0,90207.0,0.0110857]
[1765208069187,0.0110843,90220.0,90209.0,0.0110854]
[1765208069585,0.05842,90217.0,90215.0,0.0110847]
[1765208069894,0.0110842,90220.0,90219.0,0.0582]
[1765208070093,0.0695042,90220.0,90219.0,0.0582]
[1765208070294,0.05842,90220.0,90219.0,0.0582]
[1765208070891,0.0276,90211.0,90207.0,0.00016625]
[1765208071095,0.0276,90211.0,90210.0,0.03018]
[1765208071290,0.0276,90211.0,90207.0,0.00016625]
[1765208071291,0.05842,90208.0,90207.0,0.00016625]
[1765208071694,0.0695057,90208.0,90207.0,0.00016625]
[1765208071892,0.0695057,90208.0,90207.0,0.00416625]
[1765208072996,0.0695057,90208.0,90207.0,0.00816625]
[1765208076795,0.0695057,90208.0,90207.0,0.06636625]
[1765208077196,0.0386857,90208.0,90207.0,0.06636625]
[1765208077398,0.0695057,90208.0,90207.0,0.00816625]
[1765208081694,0.0695057,90208.0,90190.0,0.00110878]
[1765208081904,0.0695078,90191.0,90190.0,0.00110878]
[1765208082104,0.0110902,90172.0,90171.0,0.02948]
[1765208082612,0.0693402,90172.0,90171.0,0.05875]
[1765208082806,0.05825,90172.0,90171.0,0.05875]
[1765208083707,0.05925,90172.0,90171.0,0.03848]
[1765208083907,0.05925,90172.0,90171.0,0.07975]
[1765208085218,0.001,90172.0,90171.0,0.07975]
[1765208088110,0.05925,90172.0,90171.0,0.07975]
[1765208088503,0.05925,90172.0,90171.0,0.05048]
[1765208088703,0.05925,90172.0,90171.0,0.021]
[1765208090707,0.0693412,90163.0,90162.0,0.00016635]
[1765208091503,0.0693412,90163.0,90144.0,0.01714]
[1765208091504,0.0110934,90146.0,90144.0,0.01714]
[1765208091703,0.0110934,90146.0,90145.0,0.05875]
[1765208091909,8.214e-05,90146.0,90145.0,0.05875]
[1765208092308,0.28978776,90170.0,90169.0,0.05875]
[1765208092620,0.28995411,90179.0,90171.0,0.05875]
[1765208092806,0.0120901,90172.0,90171.0,0.05875]
[1765208093307,0.0110897,90176.0,90167.0,0.01801]
[1765208093506,0.00016635,90179.0,90178.0,0.07676]
[1765208093708,0.00020835,90179.0,90178.0,0.07676]
[1765208095108,0.05792367,90224.0,90178.0,0.07676]
[1765208095109,0.28978776,90210.0,90195.0,0.05875]
[1765208095314,0.02989,90208.0,90207.0,0.02948]
[1765208095608,0.0693357,90208.0,90207.0,0.02948]
[1765208095809,0.0693357,90208.0,90207.0,0.05875]
[1765208096008,0.0693357,90208.0,90207.0,0.02948]
[1765208096405,0.05825,90199.0,90198.0,0.05891635]
[1765208096610,0.05825,90199.0,90198.0,0.00016635]
[1765208097418,0.05825,90199.0,90198.0,0.05891635]
[1765208098323,0.06025,90199.0,90198.0,0.05891635]
[1765208098523,0.07325,90199.0,90198.0,0.05991635]
[1765208098912,0.06025,90199.0,90198.0,0.00016635]
[1765208099117,0.06625,90199.0,90198.0,0.00116635]
[1765208100015,0.008,90199.0,90198.0,0.05991635]
[1765208100231,0.0110865,90201.0,90200.0,0.05875]
[1765208101121,0.31934776,90208.0,90207.0,0.05721]
[1765208101314,0.01125105,90217.0,90214.0,0.05721]
[1765208101514,0.040646,90205.0,90204.0,0.07412]
[1765208101816,0.0406468,90199.0,90198.0,0.05737635]
[1765208102119,0.0677668,90199.0,90198.0,0.00016635]
[1765208102520,0.0110892,90179.0,90178.0,0.07522]
[1765208102727,0.0110868,90199.0,90156.0,0.01691]
[1765208102728,0.0110897,90176.0,90172.0,0.06921134]
[1765208102915,0.0110902,90172.0,90165.0,0.01117188]
[1765208103224,0.0110904,90170.0,90169.0,0.05721]
[1765208103420,0.0110908,90166.0,90165.0,8.098e-05]
[1765208103621,0.0677708,90166.0,90165.0,8.098e-05]
[1765208103823,0.0110919,90157.0,90156.0,0.07428635]
[1765208104312,0.0677719,90157.0,90156.0,0.00016635]
[1765208104720,8.098e-05,90157.0,90143.0,0.02832]
[1765208104912,0.02956,90144.0,90143.0,0.02832]
[1765208105110,0.02956,90144.0,90143.0,0.05721]
[1765208105626,0.0677742,90139.0,90138.0,0.05721]
[1765208105925,0.02956,90135.0,90134.0,0.05737635]
[1765208106226,8.098e-05,90144.0,90140.0,0.05721]
[1765208106421,8.098e-05,90144.0,90143.0,0.02832]
[1765208106627,0.0110937,90143.0,90134.0,0.00016635]
[1765208107017,0.0110937,90143.0,90142.0,0.02832]
[1765208107422,0.0110937,90143.0,90134.0,0.00016635]
[1765208107423,0.05668,90135.0,90134.0,0.00016635]
[1765208107613,0.06785558,90135.0,90134.0,0.00016635]
[1765208107817,0.0110964,90121.0,90120.0,0.01691]
[1765208108021,0.0110975,90112.0,90103.0,7.974e-05]
[1765208108220,0.0110975,90112.0,90111.0,0.05721]
[1765208108420,0.02956,90109.0,90103.0,7.974e-05]
[1765208108622,0.02956,90109.0,90103.0,0.01202221]
[1765208108821,0.02956,90104.0,90103.0,7.974e-05]
[1765208109027,0.02964098,90104.0,90103.0,0.05728974]
[1765208109226,8.098e-05,90104.0,90103.0,0.07419974]
[1765208110332,0.05676098,90104.0,90103.0,7.974e-05]
[1765208111025,0.05676098,90104.0,90103.0,0.02839974]
[1765208111217,0.05776098,90104.0,90103.0,0.03639974]
[1765208111621,0.05776098,90104.0,90103.0,0.00807974]
[1765208111817,0.05668,90100.0,90099.0,0.00038842]
[1765208112026,0.0677801,90091.0,90085.0,0.01204629]
[1765208112821,0.02781,90067.0,90066.0,0.05641]
[1765208113027,0.02792727,90067.0,90066.0,0.05641]
[1765208113218,0.05646727,90067.0,90066.0,0.05641]
[1765208113828,0.00011727,90067.0,90066.0,0.05641]
[1765208114331,0.00111727,90067.0,90066.0,0.06441]
[1765208114525,0.00111727,90067.0,90066.0,0.07241]
[1765208115024,0.00111727,90067.0,90066.0,0.06241]
[1765208115238,0.00111727,90067.0,90066.0,0.06741]
[1765208115532,0.01222027,90067.0,90066.0,0.06741]
[1765208115728,0.00111727,90067.0,90066.0,0.06741]
[1765208115924,0.05746727,90067.0,90066.0,0.011]
[1765208116626,0.0674541,90058.0,90057.0,0.00016654]
[1765208117032,0.01706,90064.0,90040.0,0.00111062]
[1765208117228,0.0111052,90049.0,90040.0,0.00111062]
[1765208117425,0.0001225,90048.0,90040.0,0.00111062]
[1765208117631,0.0001225,90048.0,90040.0,0.01312453]
[1765208117930,0.0001225,90048.0,90040.0,0.00111062]
[1765208117931,0.05635,90041.0,90040.0,0.00111062]
[1765208118125,0.05635,90041.0,90040.0,0.02839062]
[1765208118324,0.05635,90041.0,90040.0,0.03839062]
[1765208119627,0.05635,90041.0,90040.0,0.01311062]
[1765208119938,0.02854,90041.0,90040.0,0.06652062]
[1765208120430,0.02954,90041.0,90040.0,0.05952062]
[1765208120632,0.05735,90041.0,90040.0,0.00711062]
[1765208120834,0.001,90041.0,90040.0,0.06352062]
[1765208121023,0.011106,90043.0,90042.0,0.05641]
[1765208121440,0.011106,90043.0,90040.0,0.00311062]
[1765208121441,0.05635,90041.0,90040.0,0.00311062]
[1765208122429,0.05635,90040.0,90035.0,0.00011103]
[1765208122628,0.0111093,90016.0,90015.0,0.05752093]
[1765208122829,0.0396493,90016.0,90015.0,0.06955205]
[1765208123735,0.03975918,90016.0,90015.0,0.06052093]
[1765208123931,0.01121918,90016.0,90015.0,0.06052093]
[1765208124128,0.06756918,90016.0,90015.0,0.00411093]
[1765208124443,0.04075918,90016.0,90015.0,0.06152093]
[1765208125239,0.06856918,90016.0,90015.0,0.00511093]
[1765208125642,0.06856918,90016.0,90015.0,0.00269833]
[1765208126040,0.01221918,90016.0,90015.0,0.05910833]
[1765208126836,0.06856918,90016.0,90015.0,0.00269833]
[1765208127044,0.06856918,90016.0,90015.0,0.02997833]
[1765208127545,0.06856918,90016.0,90015.0,0.00269833]
[1765208128438,0.06856918,90016.0,90015.0,0.02997833]
[1765208129340,0.06856918,90016.0,90015.0,0.00269833]
[1765208134450,0.01221918,90016.0,90015.0,0.05910833]
[1765208134748,0.04075918,90016.0,90015.0,0.05910833]
[1765208134948,0.06856918,90016.0,90015.0,0.00269833]
[1765208135534,0.01221918,90016.0,90015.0,0.05910833]
[1765208135736,0.06856918,90016.0,90015.0,0.05910833]
[1765208135938,0.06856918,90016.0,90015.0,0.00269833]
[1765208136851,0.06856918,90016.0,90015.0,0.02997833]
[1765208137453,0.06856918,90016.0,90015.0,0.05910833]
[1765208137767,0.01221918,90016.0,90015.0,0.05910833]
[1765208138357,0.00110988,90016.0,90015.0,0.05910833]
[1765208141853,0.0111091,90018.0,90015.0,0.00269833]
[1765208142055,0.0111091,90018.0,90017.0,0.05641]
[1765208142956,0.01124974,90018.0,90017.0,0.05641]
[1765208143252,0.00114064,90018.0,90017.0,0.05641]
[1765208143459,0.01224974,90018.0,90017.0,0.05741]
[1765208144561,0.01224974,90018.0,90017.0,0.05641]
[1765208144562,0.07293974,90018.0,90017.0,0.05641]
[1765208144861,0.07393974,90018.0,90017.0,0.001]
[1765208145452,0.0111102,90009.0,90008.0,0.05772]
[1765208146859,0.0131102,90009.0,90008.0,0.05772]
[1765208147259,0.0705102,90009.0,90008.0,0.05772]
[1765208147559,0.0715102,90009.0,90008.0,0.05872]
[1765208147757,0.0111123,89992.0,89990.0,0.00111124]
[1765208147949,0.07188436,89991.0,89990.0,0.00111124]
[1765208148545,0.07188436,89991.0,89979.0,0.01217439]
[1765208148546,0.011115,89970.0,89969.0,0.07418]
[1765208148762,0.01124697,89970.0,89969.0,0.07418]
[1765208148947,0.01124697,89970.0,89969.0,0.08594338]
[1765208149750,0.00013197,89970.0,89969.0,0.08594338]
[1765208149950,0.00016664,89978.0,89977.0,0.05772]
[1765208150160,0.0111127,89989.0,89988.0,0.07418]
[1765208151459,0.0181127,89989.0,89988.0,0.07518]
[1765208151766,0.0191127,89989.0,89988.0,0.07518]
[1765208152265,0.0483627,89989.0,89988.0,0.07518]
[1765208152466,0.0765127,89989.0,89988.0,0.07518]
[1765208152960,0.0765127,89989.0,89988.0,0.001]
[1765208153173,0.008,89989.0,89988.0,0.07518]
[1765208153565,0.00016664,89997.0,89996.0,0.05772]
[1765208156067,0.00716664,89997.0,89996.0,0.05772]
[1765208156866,0.00316664,89997.0,89996.0,0.05772]
[1765208157062,0.00416664,89997.0,89996.0,0.05772]
[1765208157262,0.00116664,89997.0,89996.0,0.05772]
[1765208157655,0.00016664,89997.0,89996.0,0.05972]
[1765208157864,0.00116664,89997.0,89996.0,0.05972]
[1765208159363,0.05792367,90029.0,90019.0,0.05849]
[1765208159364,0.23144308,90020.0,90019.0,0.05849]
[1765208159569,0.02497164,90020.0,90019.0,0.05849]
[1765208160065,0.03608044,90020.0,90019.0,0.05849]
[1765208160280,0.09351044,90020.0,90019.0,0.05849]
[1765208160458,0.05743,90011.0,90010.0,0.00016664]
[1765208161059,0.05743,90011.0,90010.0,0.02916664]
[1765208161256,0.05743,90011.0,90010.0,0.00016664]
[1765208161463,0.0111141,89978.0,89977.0,0.05849]
[1765208161662,0.0111122,89993.0,89966.0,0.07982959]
[1765208161663,0.23144308,89987.0,89970.0,0.05849]
[1765208161959,0.040755,89971.0,89970.0,0.05849]
[1765208162156,0.0111144,89975.0,89974.0,0.05849]
[1765208162363,0.00016664,89983.0,89982.0,0.05849]